[Event "44th Chess Olympiad Open 2022"]
[Site "Chennai"]
[Date "2022.07.30"]
[Round "2.28"]
[White "Diamant, Andre"]
[Black "Camacho Campusano, David Daniel"]
[Result "1/2-1/2"]
[ECO "A33"]
[WhiteElo "2538"]
[BlackElo "2221"]
[Annotator "TA"]
[PlyCount "77"]
[EventDate "2022.07.29"]
[EventType "team-tourn"]
[EventCountry "IND"]
[SourceTitle "playchess.com"]
[Source "ChessBase"]
[SourceQuality "1"]
[WhiteTeam "Brazil"]
[BlackTeam "Dominican Republic"]
[WhiteTeamCountry "BRA"]
[BlackTeamCountry "DOM"]
[TimeControl "40/5400+30:1800+30"]

{[%evp 11,77,3,13,11,41,27,25,28,25,29,27,30,37,13,14,14,12,12,12,0,0,0,0,0,0,0,0,0,0,0,0,0,3,0,0,-38,-50,-45,6,6,6,6,6,6,6,6,6,6,6,6,6,6,6,6,6,6,6,6,6,6,6,6,6,0,6,0,6,0]} 1. c4 {[%emt 0:00:05]} Nf6 {[%emt 0:00:15]} 2. Nc3 {[%emt 0:00:08]} c5 {[%emt 0:01:53]} 3. Nf3 {[%emt 0:00:42]} Nc6 {[%emt 0:01:10]} 4. d4 {[%emt 0:01:33]} cxd4 {[%emt 0:01:58]} 5. Nxd4 {[%emt 0:00:10]} e6 {[%emt 0:00:44]} 6. a3 {[%emt 0:00:50]} d5 {[%emt 0:08:09]} 7. cxd5 {[%emt 0:00:58] A33: Symmetrical English: 2 Nf3 Nf6 3 d4 cxd4 4 Nxd4 e6 5 Nc3 Nc6.} Nxd4 {[%emt 0:04:04]} (7... exd5 {is more complex.} 8. Bg5 Bc5 9. e3 O-O) 8. Qxd4 {[%emt 0:00:13] Threatens to win with e4.} (8. Qa4+ {is interesting.} b5 9. Qxd4 Nxd5 10. Bd2) 8... Nxd5 {[%emt 0:00:23]} 9. Nxd5 {[%emt 0:03:58] White has an edge.} Qxd5 {[%emt 0:01:11]} 10. Qxd5 {[%emt 0:01:31]} exd5 {[%emt 0:00:59]} 11. Be3 {[%emt 0:01:23]} Bd6 {[%emt 0:06:59] [#]} 12. g3 $146 {[%emt 0:17:09]} ({Predecessor:} 12. Bd4 f6 13. g3 Be6 14. Bg2 Ke7 15. Kd2 b6 16. Rhc1 Rac8 17. Rxc8 Rxc8 18. Rc1 Rxc1 19. Kxc1 {½-½ (25) Adams,M (2696)-Anand,V (2756) Dortmund 2022}) 12... Be5 {[%emt 0:04:30]} 13. O-O-O {[%emt 0:02:59]} Bf5 {[%emt 0:03:28] [#] aiming for ...Rc8+.} 14. Rxd5 {[%emt 0:08:48]} Rc8+ {[%emt 0:01:19]} 15. Kd2 {[%emt 0:10:47]} f6 {[%emt 0:03:52] And now ...Be4 would win.} 16. Bg2 {[%emt 0:03:20] Inhibits Be4. Strongly threatening f4.} Rc2+ {[%emt 0:05:17]} 17. Kd1 {[%emt 0:00:43] [#] f4 is the strong threat.} Rxb2 {[%emt 0:07:10]} 18. f4 {[%emt 0:01:53]} Rb1+ {[%emt 0:00:51]} 19. Kd2 {[%emt 0:07:40]} Rb2+ {[%emt 0:00:58]} 20. Kd1 {[%emt 0:20:13]} Rb1+ {[%emt 0:00:51]} 21. Bc1 {[%emt 0:01:59]} Bb2 {[%emt 0:01:17]} 22. Kd2 {[%emt 0:03:18]} Be6 {[%emt 0:09:56]} 23. Rc5 {[%emt 0:03:10]} O-O {[%emt 0:01:48]} 24. Rc7 {[%emt 0:08:08]} Rd8+ {[%emt 0:00:31]} ({Black should play} 24... Bd4 $15 25. Re7 Bf7) 25. Kc2 $11 {[%emt 0:00:47] The position is equal.} Rxc1+ {[%emt 0:01:31]} (25... Bf5+ {keeps more tension.} 26. e4 Rxc1+ 27. Rxc1 Bxc1 28. Kxc1 Rc8) 26. Rxc1 {[%emt 0:00:03]} Bxc1 {[%emt 0:00:21]} 27. Kxc1 {[%emt 0:00:23]} Rc8 {[%emt 0:00:39]} 28. Rxc8+ {[%emt 0:01:00]} Bxc8 {[%emt 0:00:02][%mdl 4096] Endgame KB-KB} 29. Kc2 {[%emt 0:00:23][%cal Bc1c2,Bc2c3,Bc3d4][%mdl 32]} Kf7 {[%emt 0:01:44]} 30. Kc3 {[%emt 0:00:10]} Ke7 {[%emt 0:00:12]} 31. Kd4 {[%emt 0:00:09]} Kd6 {[%emt 0:01:07]} 32. e4 {[%emt 0:00:51]} b6 {[%emt 0:00:56]} 33. e5+ {[%emt 0:00:44]} fxe5+ {[%emt 0:00:03]} 34. fxe5+ {[%emt 0:00:09]} Ke7 {[%emt 0:00:38]} 35. Bf1 {[%emt 0:00:40]} h6 {[%emt 0:02:28]} 36. Bb5 {[%emt 0:00:53]} Be6 {[%emt 0:01:58]} 37. Ba6 {[%emt 0:00:25]} Bh3 {[%emt 0:01:20]} 38. Bb5 {[%emt 0:00:34]} Be6 {[%emt 0:00:30]} 39. Ba6 {[%emt 0:00:24] Weighted Error Value: White=0.04 (flawless) /Black=0.04 (flawless)} 1/2-1/2

[Event "44th Chess Olympiad Open 2022"]
[Site "Chennai"]
[Date "2022.07.30"]
[Round "2.29"]
[White "Tissir, Mohamed"]
[Black "Cheng, Bobby"]
[Result "0-1"]
[ECO "B93"]
[WhiteElo "2366"]
[BlackElo "2540"]
[Annotator "TA"]
[PlyCount "62"]
[EventDate "2022.07.29"]
[EventType "team-tourn"]
[EventCountry "IND"]
[SourceTitle "playchess.com"]
[Source "ChessBase"]
[SourceQuality "1"]
[WhiteTeam "Morocco"]
[BlackTeam "Australia"]
[WhiteTeamCountry "MAR"]
[BlackTeamCountry "AUS"]
[TimeControl "40/5400+30:1800+30"]

{[%evp 20,62,0,-11,0,-3,0,-7,-14,-16,-24,-36,-35,-35,-43,-33,-33,-61,-56,-53,-32,-174,-154,-175,-166,-321,-337,-326,-334,-311,-252,-233,-221,-1059,-252,-300,-260,-290,-286,-557,-552,-859,-846,-1000,-993]} 1. e4 {[%emt 0:00:04]} c5 {[%emt 0:00:07]} 2. Nf3 {[%emt 0:01:29]} d6 {[%emt 0:00:07]} 3. d4 {[%emt 0:00:59]} cxd4 {[%emt 0:00:06]} 4. Nxd4 {[%emt 0:00:04]} Nf6 {[%emt 0:00:05]} 5. Nc3 {[%emt 0:00:04]} a6 {[%emt 0:13:17]} 6. f4 {[%emt 0:13:14]} e5 {[%emt 0:00:00]} 7. Nf3 {[%emt 0:00:10]} Nbd7 {[%emt 0:00:00][%cal Bb8d7,Bd7c5,Bc5d3][%mdl 32]} 8. a4 {[%emt 0:00:02]} Qc7 {[%emt 0:00:00]} 9. Bd3 {[%emt 0:00:09]} Be7 {[%emt 0:00:00]} 10. O-O {[%emt 0:00:25]} O-O {[%emt 0:00:00]} 11. Kh1 {[%emt 0:03:19]} Nc5 {[%emt 0:00:00] B93: Sicilian Najdorf: 6 f4.} 12. Qe1 {[%emt 0:04:25]} Re8 {[%emt 0:08:33]} 13. fxe5 {[%emt 0:05:47]} dxe5 {[%emt 0:00:14] The position is equal.} 14. Qg3 {[%emt 0:00:06]} Be6 {[%emt 0:06:53]} 15. Ng5 {[%emt 0:19:03]} (15. Nxe5 $2 Nh5 16. Qf3 Qxe5 $19) 15... Nxd3 {[%emt 0:03:26]} 16. Nxe6 {[%emt 0:01:46]} fxe6 {[%emt 0:00:09]} 17. cxd3 {[%emt 0:00:19]} Rf8 {[%emt 0:02:34][%cal Of6e4] [#] White must now prevent ...Nxe4!} 18. Bg5 $146 {[%emt 0:23:17]} ({Predecessor:} 18. Be3 Bc5 19. Bg5 Nd7 20. Bh6 Rxf1+ 21. Rxf1 Nf8 22. Ne2 Ng6 23. Rc1 Qb6 24. Bg5 Qxb2 {½-½ (70) Van Leeuwen,E (2484)-Zhak,B (2651) ICCF email 2012}) 18... Nh5 {[%emt 0:05:12]} 19. Qg4 {[%emt 0:05:29]} Bxg5 {[%emt 0:00:09]} 20. Qxg5 {[%emt 0:05:32] White does not recover from this.} (20. Qxh5 $15 h6 21. Qe2) 20... Nf4 $19 {[%emt 0:01:13]} 21. Qg4 {[%emt 0:03:57]} Qb6 {[%emt 0:02:26]} (21... Nxd3 22. Qxe6+ Kh8 23. h3 $11 (23. Nd5 Qc2 $17)) 22. a5 $2 {[%emt 0:05:31]} (22. g3 Nxd3 23. Qe2 Nxb2 24. Kg2 Rxf1 25. Rxf1) 22... Qxb2 {[%emt 0:04:23]} 23. Na4 {[%emt 0:00:53]} Qd4 {[%emt 0:00:23]} 24. Nb6 {[%emt 0:01:34]} Rae8 {[%emt 0:02:03]} 25. h3 {[%emt 0:04:03]} Rf6 {[%emt 0:09:16] Hoping for ...Rg6.} ({Not} 25... Nxd3 $2 26. Kh2) 26. Ra2 $2 {[%emt 0:00:58] [#]} (26. Rad1) 26... Qxd3 $2 {[%emt 0:02:00]} (26... Nxh3 $1 {[%mdl 512]} 27. Qd1 Nf4) 27. Raf2 {[%emt 0:00:46]} Qxe4 {[%emt 0:17:23]} 28. Nd7 {[%emt 0:00:19]} Rf5 {[%emt 0:01:10]} ({Don't blunder} 28... Rg6 $2 29. Qf3 Qxf3 30. Rxf3 $19) 29. Nxe5 $2 {[%emt 0:00:44]} (29. Qd1) 29... h5 {[%emt 0:03:00] Black is clearly winning.} ({Don't go for} 29... Qxe5 $2 30. Rxf4 Qxa5 31. Rxf5 exf5 32. Qc4+ Kh8 33. Qf7 $19) 30. Qg3 {[%emt 0:00:30]} Qxe5 {[%emt 0:01:50]} 31. Rxf4 {[%emt 0:00:05]} g5 {[%emt 0:00:37] Weighted Error Value: White=0.88/Black=0.39} 0-1

[Event "44th Chess Olympiad Open 2022"]
[Site "Chennai"]
[Date "2022.07.30"]
[Round "2.29"]
[White "Zrikem, Nassim"]
[Black "Zhao, Zong-Yuan"]
[Result "0-1"]
[ECO "D05"]
[WhiteElo "2075"]
[BlackElo "2513"]
[Annotator "TA"]
[PlyCount "46"]
[EventDate "2022.07.29"]
[EventType "team-tourn"]
[EventCountry "IND"]
[SourceTitle "playchess.com"]
[Source "ChessBase"]
[SourceQuality "1"]
[WhiteTeam "Morocco"]
[BlackTeam "Australia"]
[WhiteTeamCountry "MAR"]
[BlackTeamCountry "AUS"]
[TimeControl "40/5400+30:1800+30"]

{[%evp 18,46,-12,-2,-2,-17,-6,-22,0,0,0,0,0,-92,-101,-93,-89,-94,-87,-95,-94,-90,-85,-331,-313,-729,-733,-715,-703,-1492,-1543]} 1. d4 {[%emt 0:00:10]} Nf6 {[%emt 0:00:16]} 2. Nf3 {[%emt 0:00:09]} e6 {[%emt 0:00:24]} 3. e3 {[%emt 0:00:19]} c5 {[%emt 0:00:17]} 4. Bd3 {[%emt 0:00:38]} d5 {[%emt 0:01:16]} 5. c3 {[%emt 0:00:56]} Nc6 {[%emt 0:01:56]} 6. Nbd2 {[%emt 0:01:07]} Bd6 {[%emt 0:01:23]} 7. O-O {[%emt 0:00:39]} O-O {[%emt 0:01:21]} 8. dxc5 {[%emt 0:01:09]} Bxc5 {[%emt 0:00:13]} 9. e4 {[%emt 0:00:09]} Qc7 {[%emt 0:05:36]} 10. Qe2 {[%emt 0:02:32]} b6 {[%emt 0:06:07] D05: Colle System with ...e6.} 11. b4 {[%emt 0:06:11]} Bd6 {[%emt 0:01:31] Hoping for ...Ne5.} 12. Bb2 {[%emt 0:09:59]} Ne5 {[%emt 0:16:16] The position is equal.} 13. Nxe5 {[%emt 0:06:36]} Bxe5 {[%emt 0:00:05]} 14. Nf3 {[%emt 0:08:11]} dxe4 {[%emt 0:04:26] [#]} 15. Nxe5 $146 {[%emt 0:07:02]} (15. Bxe4 $11 {keeps the balance.} Nxe4 16. Qxe4) ({Predecessor:} 15. Bxe4 Nxe4 16. Qxe4 Bf6 17. Qxa8 Bb7 18. Qxa7 Ra8 19. Qxa8+ Bxa8 20. a4 g5 21. a5 bxa5 22. Rxa5 Bxf3 23. gxf3 {½-½ (84) Kratochvil,V (2245)-Munaev,Z (2257) GER email 2018}) 15... exd3 $17 {[%emt 0:03:18]} ({Much weaker is} 15... Qxe5 $6 16. f3 $11 (16. c4 Qf4 $11)) 16. Nxd3 {[%emt 0:07:52][%cal Oc3c4]} Ba6 {[%emt 0:01:44] aiming for ...Rad8.} 17. Rfd1 {[%emt 0:02:18][%cal Oc3c4]} Rad8 {[%emt 0:11:27] [#] Strongly threatening ...Qc4.} 18. a4 {[%emt 0:20:51]} Bc4 {[%emt 0:12:36] White must now prevent ...Qd7. Black is more active.} 19. Qe5 {[%emt 0:06:45]} Qd7 {[%emt 0:03:41]} 20. Qg3 {[%emt 0:08:34]} e5 $19 {[%emt 0:08:47] Threatens to win with ...e4.} ({Not} 20... Bxd3 21. c4 e5 22. Ra3 $17) 21. Ne1 $2 {[%emt 0:08:02]} (21. h3 Bxd3 22. c4) 21... Qxd1 {[%emt 0:01:07] Black is clearly winning.} 22. Rxd1 {[%emt 0:00:03]} Rxd1 {[%emt 0:00:06][%cal Rd1e1] [#]} 23. Qe3 {[%emt 0:01:17]} Ng4 {[%emt 0:02:28] Black took control after the opening.  Weighted Error Value: White=0.98/Black=0.01 (flawless)} 0-1

[Event "44th Chess Olympiad Open 2022"]
[Site "Chennai"]
[Date "2022.07.30"]
[Round "2.30"]
[White "Chaves Sanchez, Gabriel A"]
[Black "Tristan, Leonardo"]
[Result "0-1"]
[ECO "C83"]
[WhiteElo "2125"]
[BlackElo "2558"]
[Annotator "TA"]
[PlyCount "78"]
[EventDate "2022.07.29"]
[EventType "team-tourn"]
[EventCountry "IND"]
[SourceTitle "playchess.com"]
[Source "ChessBase"]
[SourceQuality "1"]
[WhiteTeam "Costa Rica"]
[BlackTeam "Argentina"]
[WhiteTeamCountry "CRI"]
[BlackTeamCountry "ARG"]
[TimeControl "40/5400+30:1800+30"]

{[%evp 22,78,0,2,0,-37,-39,-46,-32,-40,-55,-62,-27,-22,0,0,0,0,0,0,0,-8,-6,0,-2,-56,-58,-56,-55,-62,-45,-108,-100,-201,-200,-227,-237,-333,-278,-360,-195,-285,-244,-295,-304,-416,-393,-570,-403,-459,-478,-760,-685,-859,-858,-767,-535,-1167,-1102]} 1. e4 {[%emt 0:00:07]} e5 {[%emt 0:00:11]} 2. Nf3 {[%emt 0:00:09]} Nc6 {[%emt 0:00:08]} 3. Bb5 {[%emt 0:00:07]} a6 {[%emt 0:00:13]} 4. Ba4 {[%emt 0:00:09]} Nf6 {[%emt 0:00:13]} 5. O-O {[%emt 0:00:16]} Nxe4 {[%emt 0:00:59]} 6. d4 {[%emt 0:06:25]} Be7 {[%emt 0:00:07]} 7. Re1 {[%emt 0:01:19]} b5 {[%emt 0:05:19]} 8. Bb3 {[%emt 0:03:15]} d5 {[%emt 0:00:06]} 9. dxe5 {[%emt 0:00:04]} Be6 {[%emt 0:00:10]} 10. c3 {[%emt 0:02:05]} O-O {[%emt 0:00:19]} 11. Nbd2 {[%emt 0:11:53] 11.Nd4 is vanishing.} Nc5 {[%emt 0:00:08]} 12. Bc2 {[%emt 0:00:23]} d4 {[%emt 0:00:10] C83: Open Ruy Lopez: 9 c3 Be7.} 13. Ne4 {[%emt 0:23:54]} dxc3 {[%emt 0:12:31] [#] And now ...Qxd1 would win.} 14. Nxc3 {[%emt 0:00:20]} Nb4 {[%emt 0:14:23] Black is slightly better.} 15. Bb1 {[%emt 0:14:22]} Qxd1 {[%emt 0:12:12]} 16. Rxd1 {[%emt 0:00:48] [#]} Rfd8 $146 {[%emt 0:00:08]} ({Predecessor:} 16... Nc6 17. Be3 Rad8 18. Rc1 Nb4 19. Bxc5 Bxc5 20. a3 Nc6 21. Bxh7+ Kxh7 22. Ne4 Nd4 23. Nxc5 {0-1 (42) Lagarde,M (2615)-Matlakov,M (2683) Bastia 2018}) 17. Nd4 {[%emt 0:02:12] [#]} Ncd3 $1 {[%emt 0:15:18]} 18. Nxe6 {[%emt 0:06:12]} ({Don't play} 18. Bxd3 Rxd4 19. Be2 (19. Bxh7+ $2 Kxh7 20. Rxd4 Nc2 $19) 19... Rxd1+ 20. Bxd1 Nd3 $17) 18... fxe6 {[%emt 0:00:48]} 19. a3 {[%emt 0:06:59]} Nxc1 {[%emt 0:01:45]} 20. Rxc1 {[%emt 0:00:10]} Bg5 $36 {[%emt 0:03:09][%cal Be7g5,Bg5f4,Bf4e5,Be5b2][%mdl 2080] White is under pressure.} 21. Rf1 {[%emt 0:01:30]} Nd3 {[%emt 0:00:39]} 22. Bxd3 {[%emt 0:04:44]} Rxd3 {[%emt 0:00:05]} 23. Ne4 {[%emt 0:03:36]} (23. Rfd1 $11 Rxd1+ 24. Rxd1) 23... Bf4 $1 $15 {[%emt 0:01:17]} 24. Nc5 {[%emt 0:03:48][%csl LRd3,LRe6]} Rd5 {[%emt 0:09:56]} 25. Nxe6 {[%emt 0:01:57]} Bxe5 {[%emt 0:00:04]} 26. Rac1 {[%emt 0:02:05]} (26. Rae1 $15) 26... Bxb2 $17 {[%emt 0:01:49]} 27. Rxc7 {[%emt 0:02:49]} (27. Rc2 $17 {only move.} Bxa3 28. Rxc7) 27... Rd6 $19 {[%emt 0:00:49]} 28. Ng5 {[%emt 0:01:37]} Bxa3 {[%emt 0:02:36]} 29. f4 {[%emt 0:00:18]} (29. Ne4 $142 Rd5 30. g3) 29... h6 {[%emt 0:02:26]} 30. Nf3 {[%emt 0:00:26]} Rad8 {[%emt 0:00:44]} (30... Rd5 $142 31. Rb1 Bd6) 31. Ne5 {[%emt 0:00:22]} (31. Ra1 $142 Rd1+ 32. Rxd1 Rxd1+ 33. Kf2) 31... Bb2 {[%emt 0:02:57]} 32. Nc6 {[%emt 0:01:23]} R6d7 {[%emt 0:00:49]} 33. Nxd8 {[%emt 0:00:39]} Rxc7 {[%emt 0:00:04][%mdl 4096] Endgame KRB-KRN} ({Don't go for} 33... Bd4+ $2 34. Kh1 Rxc7 35. Ne6 $19) 34. Kf2 {[%emt 0:00:28]} (34. Re1 $142 Rc8 35. Nb7) 34... Bf6 {[%emt 0:05:22]} 35. Ne6 {[%emt 0:00:16]} Rc6 {[%emt 0:00:06] Black is clearly winning.} 36. Re1 {[%emt 0:00:39]} (36. f5 $142 b4 37. Rb1) 36... b4 {[%emt 0:00:40][%cal Bb5b4,Bb4b3,Bb3b2][%mdl 32] Threatens to win with ...b3.} 37. f5 {[%emt 0:00:36]} b3 {[%emt 0:01:48]} 38. Nf4 {[%emt 0:00:22]} b2 {[%emt 0:00:50] ...Rc1 is the strong threat.} 39. Ng6 {[%emt 0:00:12] Threatening mate with Re8+.} Rc8 {[%emt 0:00:35] Inhibits Re8+.  Weighted Error Value: White=0.73/Black=0.27 (precise)} (39... Rc1 $2 {is a self mate.} 40. Re8+ Kh7 41. Rh8#) 0-1

[Event "44th Chess Olympiad Open 2022"]
[Site "Chennai"]
[Date "2022.07.30"]
[Round "2.32"]
[White "Albornoz Cabrera, Carlos Daniel"]
[Black "Balogun, Oluwafemi"]
[Result "1-0"]
[ECO "B08"]
[WhiteElo "2566"]
[BlackElo "2274"]
[Annotator "TA"]
[PlyCount "61"]
[EventDate "2022.07.29"]
[EventType "team-tourn"]
[EventCountry "IND"]
[SourceTitle "playchess.com"]
[Source "ChessBase"]
[SourceQuality "1"]
[WhiteTeam "Cuba"]
[BlackTeam "Nigeria"]
[WhiteTeamCountry "CUB"]
[BlackTeamCountry "NGR"]
[TimeControl "40/5400+30:1800+30"]

{[%evp 11,61,31,63,65,82,64,82,64,75,71,92,61,65,46,44,40,54,58,83,67,60,45,115,99,128,128,133,82,91,86,92,94,252,179,180,180,190,181,168,178,191,112,433,433,587,419,993,1072,1065,1058,1788,1527]} 1. e4 {[%emt 0:00:06]} g6 {[%emt 0:00:37]} 2. d4 {[%emt 0:00:05]} Bg7 {[%emt 0:01:17]} 3. Nc3 {[%emt 0:00:09]} c6 {[%emt 0:01:08]} 4. Nf3 {[%emt 0:01:38]} d6 {[%emt 0:03:12]} 5. Be3 {[%emt 0:00:10]} Nf6 {[%emt 0:00:51]} 6. Qd2 {[%emt 0:00:47]} Bg4 {[%emt 0:23:29]} 7. h4 $5 {[%emt 0:08:23][%mdl 4] Exploring less charted territory. B08: Pirc Defence: Classical System.} Bxf3 {[%emt 0:00:30]} 8. gxf3 {[%emt 0:00:30]} Nbd7 {[%emt 0:07:30] [#]} 9. f4 $146 {[%emt 0:07:50] White is better.} ({Predecessor:} 9. Be2 Qa5 10. f4 O-O-O 11. a3 Kb8 12. b4 Qc7 13. h5 Nxh5 14. Bxh5 gxh5 15. Rxh5 {1-0 (41) Rieger,M (2147)-Brack,J (1936) Sinzing 2014}) 9... Ng4 {[%emt 0:00:39]} 10. h5 {[%emt 0:05:18]} Rg8 {[%emt 0:06:13]} 11. hxg6 {[%emt 0:03:10]} hxg6 {[%emt 0:00:07]} 12. Bh3 {[%emt 0:03:59]} Nxe3 {[%emt 0:05:15]} 13. fxe3 {[%emt 0:00:09]} e6 {[%emt 0:01:42]} 14. O-O-O {[%emt 0:04:17]} Qa5 {[%emt 0:05:00]} 15. f5 {[%emt 0:09:48]} exf5 {[%emt 0:11:45]} 16. exf5 {[%emt 0:00:05]} O-O-O {[%emt 0:00:31]} (16... gxf5 $2 17. Rdf1 $18) (16... g5 $14) 17. Rdg1 {[%emt 0:08:54]} Bf6 {[%emt 0:19:47]} 18. fxg6 {[%emt 0:08:56]} fxg6 {[%emt 0:02:23]} 19. Be6 {[%emt 0:03:55]} (19. Qf2 $142 Rdf8 20. Qg3) 19... Rge8 $16 {[%emt 0:02:03]} 20. Bf7 {[%emt 0:01:50][%cal Be6f7,Bf7g6,Bg6f5][%mdl 32] White is more active.} Re7 {[%emt 0:00:00]} 21. Bxg6 {[%emt 0:00:07]} Nb6 $2 {[%emt 0:03:18]} (21... Kb8 $16) 22. Rh5 {[%emt 0:03:39]} d5 {[%emt 0:03:03] [#]} 23. Qf2 $1 {[%emt 0:02:38]} Nd7 {[%emt 0:01:06]} 24. Bf5 $36 {[%emt 0:04:06][%mdl 2048] And now Bxd7+ would win. Keeping Black busy.} Rf8 {[%emt 0:00:12]} 25. e4 {[%emt 0:05:21] e5 is the strong threat.} Kb8 {[%emt 0:00:50]} 26. e5 {[%emt 0:01:14]} (26. exd5 $18 Ref7 27. dxc6 bxc6 28. Qe3) 26... Bg7 $2 {[%emt 0:00:31][%mdl 8192] [#]} (26... Nxe5 $16 27. dxe5 Bxe5) 27. Rh7 $18 {[%emt 0:01:42]} Ref7 {[%emt 0:00:27]} 28. Rg5 {[%emt 0:01:13]} ({Weaker is} 28. Rgxg7 Rxf5 29. Qe2 Rf2 $16) 28... Bh8 {[%emt 0:00:32]} (28... Bf6 $142 29. exf6 Rxh7) 29. Rxf7 {[%emt 0:00:26] White is clearly winning.} Rxf7 {[%emt 0:00:12]} 30. e6 {[%emt 0:04:27][%csl LRd7,LRf7]} Qd8 {[%emt 0:00:48]} 31. Qg3+ {[%emt 0:00:21] Weighted Error Value: White=0.25 (precise) /Black=0.60} 1-0

[Event "44th Chess Olympiad Open 2022"]
[Site "Chennai"]
[Date "2022.07.30"]
[Round "2.32"]
[White "Kigigha, Bomo"]
[Black "Quesada Perez, Luis Ernesto"]
[Result "0-1"]
[ECO "A09"]
[WhiteElo "2251"]
[BlackElo "2549"]
[Annotator "TA"]
[PlyCount "60"]
[EventDate "2022.07.29"]
[EventType "team-tourn"]
[EventCountry "IND"]
[SourceTitle "playchess.com"]
[Source "ChessBase"]
[SourceQuality "1"]
[WhiteTeam "Nigeria"]
[BlackTeam "Cuba"]
[WhiteTeamCountry "NGR"]
[BlackTeamCountry "CUB"]
[TimeControl "40/5400+30:1800+30"]

{[%evp 9,60,-163,-146,-157,-165,-214,-211,-220,-210,-238,-237,-331,-331,-331,-287,-319,-318,-318,-297,-455,-455,-425,-399,-378,-277,-282,-279,-241,-246,-224,-116,-339,-336,-338,-332,-302,-268,-324,-298,-497,-492,-483,-462,-795,-801,-762,-408,-838,-553,-884,-880,-832,-496]} 1. Nf3 {[%emt 0:00:09]} d5 {[%emt 0:00:14]} 2. c4 {[%emt 0:00:10]} d4 {[%emt 0:00:08]} 3. b4 {[%emt 0:01:06]} f6 {[%emt 0:00:06]} 4. e3 {[%emt 0:06:24]} e5 {[%emt 0:00:29]} 5. Nxe5 {[%emt 0:05:43]} fxe5 {[%emt 0:00:03]} 6. Qh5+ {[%emt 0:00:06] A09: Réti Opening: 1 Nf3 d5 2 c4.} Ke7 {[%emt 0:02:22] [#]} 7. b5 $146 {[%emt 0:12:56]} (7. Qxe5+ $142 Kf7 8. c5) ({Predecessor:} 7. Qxe5+ Kf7 8. c5 Be6 9. Bb2 Nf6 10. Na3 Nc6 11. Qf4 Nxb4 12. Bxd4 Be7 13. Rb1 {0-1 (26) Ochman,T (1853)-Watarkar,Y (1495) Prague 2019}) 7... c5 $19 {[%emt 0:04:02]} 8. Qxe5+ {[%emt 0:02:57] Black is clearly better.} Kf7 {[%emt 0:00:07]} 9. Bb2 {[%emt 0:01:36]} Nf6 {[%emt 0:00:14] And now ...Bd6 would win.} 10. Qf4 {[%emt 0:12:12]} Bd6 {[%emt 0:18:35]} 11. Qh4 {[%emt 0:04:22]} Re8 {[%emt 0:08:49]} 12. Be2 {[%emt 0:21:46]} Nbd7 {[%emt 0:07:16][%cal Bb8d7,Bd7e5,Be5g6][%mdl 32]} 13. O-O {[%emt 0:04:44]} Ne5 {[%emt 0:04:57] Strongly threatening ...Ng6.} 14. exd4 {[%emt 0:06:58]} (14. f4 {was worth a try.} Ng6 15. Qf2) 14... Ng6 {[%emt 0:01:55][%csl LRe2,LRh4] Pair of Knights!} 15. Bh5 {[%emt 0:00:07]} Re4 {[%emt 0:00:27]} 16. f4 {[%emt 0:03:56] [#]} Bg4 $1 {[%emt 0:03:02][%mdl 512]} 17. Bxg6+ {[%emt 0:03:30]} hxg6 {[%emt 0:00:26]} 18. Nc3 {[%emt 0:00:24]} Rxd4 {[%emt 0:03:42]} 19. Nd5 {[%emt 0:00:57]} Nxd5 {[%emt 0:00:11]} (19... Be2 $19 20. Nxf6 (20. Bxd4 $2 Nxd5 21. Qh3 Bxf1 $19) 20... Qxf6 21. Qxf6+ gxf6 22. Bxd4 cxd4) 20. Qxd8 $2 {[%emt 0:02:09] White does not recover from this.} (20. Qxg4 $17 Nf6 21. Qf3 Rxf4 22. Qxb7+ Kg8 23. d3) 20... Rxd8 {[%emt 0:00:10]} 21. Bxd4 {[%emt 0:00:05]} cxd4 {[%emt 0:06:34]} 22. cxd5 {[%emt 0:00:05]} Be2 {[%emt 0:00:10][%mdl 64] [#] Deflection} 23. Rfb1 {[%emt 0:01:15]} d3 {[%emt 0:01:21]} ({Weaker is} 23... Bxf4 24. Rf1 Bxf1 25. Rxf1 $17) 24. Rc1 $2 {[%emt 0:00:26]} (24. g3 {keeps fighting.}) 24... Bb4 {[%emt 0:05:07]} ({Not} 24... Bxf4 25. Rf1 g5 26. g3 $17) 25. Rc7+ {[%emt 0:01:02]} Kg8 {[%emt 0:00:41]} 26. Rxb7 {[%emt 0:02:25]} (26. g3 $142 Bxd2 27. Kf2) 26... Bxd2 {[%emt 0:00:11] aiming for ...Be3+.} 27. Re7 {[%emt 0:00:07] Prevents Be3+.} Rxd5 {[%emt 0:00:59]} 28. Rb1 {[%emt 0:00:34]} (28. Kf2 $142) 28... Bxf4 {[%emt 0:01:06] Black is clearly winning.} 29. Kf2 {[%emt 0:00:28]} Rf5 {[%emt 0:04:35] ( -> ...Bg5+)} 30. Ke1 {[%emt 0:05:02]} Be3 {[%emt 0:00:28] Weighted Error Value: White=0.88/Black=0.38} 0-1